bitfinex-derivatives/quotes_ETHF0:USTF0_20250528
["timestamp","ask_amount","ask_price","bid_price","bid_amount"]
[1748460006965,0.0802985,2651.6,2651.5,1.9957]
[1748460007157,0.0802985,2651.6,2651.5,5.2035]
[1748460008960,0.0802985,2651.6,2651.5,9.0565]
[1748460009563,0.0802985,2651.6,2651.5,14.0565]
[1748460012972,0.0802985,2651.6,2651.5,5.2035]
[1748460013269,0.0802985,2651.6,2651.2,3.2078]
[1748460013270,0.75413,2651.4,2651.2,3.2078]
[1748460013571,0.75413,2651.4,2651.3,0.75415]
[1748460013873,0.75415,2651.3,2651.2,3.96197]
[1748460014966,2.09904,2651.4,2651.3,0.75415]
[1748460015872,3.23024,2651.4,2651.0,1.37313]
[1748460016065,1.88546,2651.2,2650.6,3.2078]
[1748460016373,0.75427,2650.9,2650.6,3.2078]
[1748460016773,0.75427,2650.9,2650.6,3.96214]
[1748460017374,2.10667,2650.9,2650.7,0.75432]
[1748460017674,2.10667,2650.9,2650.6,3.2078]
[1748460017675,2.10667,2650.9,2650.1,7.0608]
[1748460017878,2.10667,2650.9,2650.1,24.6058]
[1748460018065,2.10667,2650.9,2650.2,1.2226]
[1748460018774,2.10667,2650.9,2650.4,0.7544]
[1748460018974,2.10667,2650.9,2650.5,0.75438]
[1748460019165,2.10667,2650.9,2650.4,0.7544]
[1748460019566,6.3524,2650.9,2649.8,4.4633]
[1748460019871,0.75455,2649.9,2649.8,3.2078]
[1748460020072,0.75455,2650.0,2649.9,0.75454]
[1748460020378,0.75452,2650.1,2650.0,0.75451]
[1748460020875,2.09652,2650.1,2650.0,0.75451]
[1748460021879,0.75454,2650.0,2649.9,0.75453]
[1748460022073,0.75455,2649.9,2649.8,0.00565942]
[1748460022376,7.81635,2649.9,2649.8,0.00565942]
[1748460025075,12.81635,2649.9,2649.8,0.00565942]
[1748460025476,0.75475,2649.2,2649.1,1.3238]
[1748460025672,0.75484,2648.9,2648.8,0.6457]
[1748460025883,1.88697,2649.1,2648.7,1.3238]
[1748460025884,0.75487,2648.8,2648.7,1.3238]
[1748460026277,0.75489,2648.7,2648.6,3.2078]
[1748460026473,2.10279,2648.7,2648.6,3.2078]
[1748460026883,0.00565942,2648.9,2648.8,0.75487]
[1748460027377,1.28555942,2648.9,2648.8,0.75487]
[1748460027684,2.04040942,2648.9,2648.8,0.75487]
[1748460027983,1.28555942,2648.9,2648.8,0.75487]
[1748460028277,0.00565942,2648.9,2648.8,0.75487]
[1748460028479,0.00565942,2648.9,2648.8,5.75487]
[1748460028784,3.2078,2649.5,2649.3,0.7547]
[1748460028978,0.75472,2649.4,2649.3,0.7547]
[1748460029181,1.88681,2649.3,2648.7,3.2078]
[1748460029381,1.2799,2649.4,2648.7,0.75487]
[1748460029382,0.7549,2648.8,2648.7,0.75487]
[1748460030182,1.2799,2648.9,2648.8,0.75487]
[1748460030384,2.03474,2648.9,2648.8,0.75487]
[1748460031080,0.00565942,2649.0,2648.9,0.75484]
[1748460031885,0.00565942,2649.0,2648.9,3.96264]
[1748460032084,3.2078,2650.1,2648.9,3.96264]
[1748460032085,3.852,2650.4,2649.0,0.3774]
[1748460032291,0.75455,2650.0,2649.9,0.75452]
[1748460032898,0.75449,2650.2,2650.1,0.75447]
[1748460033090,1.40165,2650.3,2650.2,0.75447]
[1748460033296,0.6472,2650.3,2649.9,0.00565942]
[1748460033497,0.75448,2650.2,2650.1,0.75447]
[1748460033996,2.08078,2650.2,2650.1,0.75447]
[1748460034198,2.08078,2650.2,2650.1,0.7545]
[1748460034602,0.75452,2650.0,2649.9,0.00565942]
[1748460035798,0.82915908,2650.0,2649.9,0.00565942]
[1748460040302,0.75467,2649.5,2649.4,0.6495]
[1748460041204,1.96095908,2650.0,2649.4,10.74402]
[1748460041402,0.07463908,2650.0,2649.9,0.75455]
[1748460041605,0.07463908,2650.0,2649.4,3.8573]
[1748460041803,0.75467,2649.5,2649.4,0.6495]
[1748460042005,0.75467,2649.5,2649.4,1.40419]
[1748460042209,0.07463908,2650.0,2649.4,0.6495]
[1748460042405,0.7546,2649.8,2649.7,0.75459]
[1748460042716,0.75463,2649.7,2649.6,0.75462]
[1748460043411,1.88641,2649.9,2649.4,3.8573]
[1748460043601,0.75467,2649.5,2649.4,0.6495]
[1748460043805,0.75467,2649.5,2649.4,1.40419]
[1748460044508,0.75467,2649.5,2649.4,0.6495]
[1748460044809,0.75472,2649.3,2649.2,0.62465942]
[1748460045013,0.75472,2649.3,2649.2,9.42e-06]
[1748460045309,5.75472,2649.3,2649.2,9.42e-06]
[1748460045809,9.60672,2649.3,2649.2,9.42e-06]
[1748460047805,10.65526453,2649.3,2649.2,9.42e-06]
[1748460048811,10.65626453,2649.3,2649.2,9.42e-06]
[1748460050011,10.65623369,2649.3,2649.2,9.42e-06]
[1748460051916,5.65623369,2649.3,2649.2,9.42e-06]
[1748460054415,5.65420212,2649.3,2649.2,9.42e-06]
[1748460056617,4.60772,2649.3,2649.2,9.42e-06]
[1748460057528,0.75472,2649.3,2649.2,9.42e-06]
[1748460059222,0.75472,2649.3,2649.2,0.67250942]
[1748460059425,0.75472,2649.3,2649.2,1.31530942]
[1748460060224,0.75472,2649.3,2649.2,2.07003942]
[1748460060423,0.86779,2649.5,2649.4,0.75469]
[1748460060617,0.86779,2649.5,2649.3,1.9965]
[1748460060827,0.75469,2649.4,2649.3,1.9965]
[1748460061035,0.75469,2649.4,2649.3,1.2418]
[1748460061225,0.75469,2649.4,2649.3,6.99652]
[1748460061423,0.86778,2649.5,2649.4,0.75469]
[1748460062728,0.75469,2649.4,2649.3,1.2418]
[1748460062927,0.75469,2649.4,2649.3,1.99652]
[1748460063128,0.75469,2649.4,2649.3,1.2418]
[1748460063726,0.75469,2649.4,2649.3,1.99652]
[1748460063926,0.75469,2649.4,2649.3,1.2418]
[1748460065122,2.01099,2649.4,2649.3,1.2418]
[1748460065734,0.75472,2649.3,2649.2,9.42e-06]
[1748460065933,2.01102,2649.3,2649.2,9.42e-06]
[1748460066124,8.05684968,2649.3,2649.2,9.42e-06]
[1748460066434,3.7741,2649.0,2647.8,1.3004]
[1748460066637,3.96287,2648.1,2648.0,1.3004]
[1748460066932,0.75512,2647.9,2647.8,0.6497]
[1748460067128,3.2078,2648.1,2647.7,1.3451]
[1748460067129,0.75515,2647.8,2647.7,1.3451]
[1748460068432,1.27335942,2648.0,2647.7,1.3451]
[1748460068433,0.76077942,2648.0,2647.7,1.3451]
[1748460068632,0.00565942,2648.0,2647.7,1.3451]
[1748460068832,0.75514,2647.9,2647.7,2.10026]
[1748460069031,0.75514,2647.9,2647.8,1.3451]
[1748460069429,0.76076942,2648.0,2647.8,2.10022]
[1748460069629,0.76074942,2648.0,2647.9,0.6438]
[1748460069835,0.76074942,2648.0,2647.9,1.9889]
[1748460070231,0.00565942,2648.0,2647.9,2.74402]
[1748460070537,0.76074942,2648.0,2647.9,2.74402]
[1748460071132,0.00565942,2648.0,2647.9,2.74402]
[1748460071538,0.76074942,2648.0,2647.9,1.9889]
[1748460072840,0.76074942,2648.0,2647.9,2.74402]
[1748460073537,0.76074942,2648.0,2647.9,1.9889]
[1748460074531,0.76074942,2648.0,2647.6,0.7552]
[1748460074532,1.32225942,2648.0,2647.6,0.7552]
[1748460074731,0.75519,2647.7,2647.6,1.9526]
[1748460076339,0.00565942,2648.0,2647.6,1.9526]
[1748460076542,0.75518,2647.8,2647.7,1.3051]
[1748460080247,3.96294,2647.9,2647.7,1.3051]
[1748460080450,0.75515,2647.8,2647.7,2.06026]
[1748460080744,3.96294,2647.9,2647.8,0.75515]
[1748460080945,3.96294,2647.9,2647.8,2.01785]
[1748460081548,3.96294,2647.9,2647.8,1.2627]
[1748460082758,0.00565942,2648.0,2647.9,0.75512]
[1748460083059,0.00565942,2648.0,2647.9,1.38172]
[1748460083258,0.00565942,2648.0,2647.9,7.66432]
[1748460083954,0.00565942,2648.0,2647.9,25.22432]
[1748460084456,0.00565942,2648.0,2647.9,25.5191464]
[1748460084952,0.00565942,2648.0,2647.9,25.51913488]
[1748460085153,0.00565942,2648.0,2647.9,25.5195314]
[1748460085457,0.00565942,2648.0,2647.9,25.5194925]
[1748460085655,0.00565942,2648.0,2647.9,25.51949438]
[1748460085855,0.00565942,2648.0,2647.9,25.51950382]
[1748460086553,0.76074942,2648.0,2647.9,0.71683382]
[1748460086755,0.75518,2647.7,2647.6,0.6438]
[1748460086953,0.75518,2647.7,2647.6,0.93919437]
[1748460087256,0.75518,2647.7,2647.6,1.39901]
[1748460088257,0.75518,2647.7,2647.6,1.69439029]
[1748460088767,0.75518,2647.8,2647.7,0.75516]
[1748460089264,1.89342942,2648.0,2647.6,1.39899]
[1748460089265,0.75518,2647.7,2647.6,1.39899]
[1748460089554,0.75518,2647.7,2647.6,0.93927899]
[1748460089760,0.75518,2647.7,2647.6,0.93928162]
[1748460090351,0.75518,2647.7,2647.6,0.6438]
[1748460090556,0.75518,2647.7,2647.6,0.93932866]
[1748460090760,0.75518,2647.7,2647.6,0.93932952]
[1748460090961,3.96298,2647.7,2647.6,0.29553025]
[1748460091152,0.75521,2647.6,2647.5,0.00565942]
[1748460091355,3.30681,2647.6,2647.5,0.00565942]
[1748460091556,3.30681,2647.6,2647.5,0.30146849]
[1748460091762,3.30681,2647.6,2647.5,0.30149696]
[1748460092061,3.30681,2647.6,2647.5,0.30146616]
[1748460092262,3.30681,2647.6,2647.5,0.30148701]
[1748460092453,8.30681,2647.6,2647.5,0.30148853]
[1748460092766,0.75546,2646.8,2646.6,0.75549]
[1748460093065,0.75546,2646.7,2646.6,1.296]
[1748460093264,0.75546,2646.8,2646.7,0.75546]
[1748460093568,0.75543,2646.9,2646.8,0.75543]
[1748460094160,1.2816,2647.0,2646.9,0.75541]
[1748460094360,5.86494,2647.2,2647.0,0.75536]
[1748460094556,0.75535,2647.1,2647.0,0.75536]
[1748460094861,0.75537,2647.1,2646.7,1.3004]
[1748460095057,0.75537,2647.1,2647.0,0.75538]
[1748460095261,2.01494,2647.2,2647.1,0.75535]
[1748460095464,0.75535,2647.1,2647.0,0.75536]
[1748460095764,0.75535,2647.1,2647.0,2.05576]
[1748460095962,0.75535,2647.1,2647.0,1.3004]
[1748460096261,0.75535,2647.1,2647.0,2.05578]
[1748460096558,3.2078,2647.3,2647.2,0.75532]
[1748460097563,0.75528,2647.4,2647.3,0.75528]
[1748460098567,1.2596,2647.5,2647.0,5.1514]
[1748460098771,1.2596,2647.5,2647.2,0.7553]
[1748460098772,0.75531,2647.3,2647.2,0.7553]
[1748460099762,3.1477,2647.5,2647.0,5.1514]
[1748460099974,2.08233,2647.2,2647.1,0.75535]
[1748460100162,0.75533,2647.2,2647.1,0.75535]
[1748460100363,1.8881,2647.5,2647.0,1.3004]
[1748460100364,0.75535,2647.1,2647.0,1.3004]
[1748460100564,0.75535,2647.1,2647.0,18.8624]
[1748460101074,2.01544,2647.2,2647.0,18.8624]
[1748460101274,2.01544,2647.2,2647.1,0.75535]
[1748460102365,0.75535,2647.1,2647.0,19.61776]
[1748460103174,1.8881,2647.5,2647.0,18.8624]
[1748460103474,0.75534,2647.2,2647.1,0.75531]
[1748460104872,0.75531,2647.3,2647.2,0.75529]
[1748460105170,2.01536,2647.5,2647.4,0.75526]
[1748460105377,2.01536,2647.5,2647.4,1.04914491]
[1748460105570,2.01536,2647.5,2647.2,1.3343]
[1748460105571,0.75526,2647.4,2647.3,0.75527]
[1748460105766,0.75526,2647.4,2647.3,1.04915029]
[1748460105972,0.75526,2647.4,2647.3,1.0491734]
[1748460106476,2.01536,2647.5,2647.4,0.75526]
[1748460106779,2.01536,2647.5,2647.4,2.39896922]
[1748460106974,2.01536,2647.5,2647.4,1.64370574]
[1748460107180,2.01536,2647.5,2647.4,1.64370743]
[1748460107478,2.01536,2647.5,2647.4,1.3498]
[1748460107776,2.01536,2647.5,2647.4,2.39894297]
[1748460108178,4.57812,2647.6,2647.5,0.75524]
[1748460108373,4.57812,2647.6,2647.5,0.29388297]
[1748460108776,0.75524,2647.5,2647.4,2.10506]
[1748460108980,1.2218,2647.5,2647.4,2.39899534]
[1748460109177,1.97704,2647.5,2647.4,1.3498]
[1748460109475,1.97704,2647.5,2647.4,0.29391197]
[1748460109868,1.97704,2647.5,2647.2,17.561]
[1748460109869,0.75529,2647.3,2647.2,18.31631]
[1748460110281,0.75529,2647.3,2647.2,18.61024516]
[1748460110474,0.75529,2647.3,2647.2,1.04924516]
[1748460110874,3.8229,2647.6,2647.5,0.75524]
[1748460111075,3.8229,2647.6,2647.5,1.04921298]
[1748460111275,4.57811,2647.6,2647.5,0.29396186]
[1748460111486,0.75526,2647.4,2647.3,5.26347]
[1748460111874,0.75526,2647.4,2647.3,5.55748149]
[1748460112583,0.75526,2647.4,2647.3,1.04926455]
[1748460112881,0.75526,2647.4,2647.3,18.31527]
[1748460113083,0.75526,2647.4,2647.3,18.60935067]
[1748460113283,0.75526,2647.4,2647.3,19.92765067]
[1748460114181,0.75526,2647.4,2647.3,19.63357]
[1748460114484,0.75526,2647.4,2647.3,19.92777689]
[1748460114685,0.75526,2647.4,2647.3,19.92793903]
[1748460114888,0.74733837,2647.4,2647.3,19.63357]
[1748460115186,0.74733837,2647.4,2647.3,19.92795516]
[1748460115784,0.74733837,2647.4,2647.3,1.61263448]
[1748460115990,0.74733837,2647.4,2647.3,17.559]
[1748460116190,0.74733837,2647.4,2647.3,17.85332939]
[1748460116382,0.74733837,2647.4,2647.3,17.85356689]
[1748460116785,0.74733837,2647.4,2647.3,17.85356586]
[1748460117481,0.74733837,2647.4,2647.3,0.29456586]
[1748460117786,0.74733837,2647.4,2646.9,4.62859]
[1748460117787,0.75538,2647.0,2646.9,22.18759]
[1748460118193,0.75538,2647.0,2646.9,23.42469]
[1748460119387,1.35,2647.1,2647.0,0.75538]
[1748460119891,1.35,2647.1,2647.0,2.26977582]
[1748460120087,2.10535,2647.1,2647.0,2.26977582]
[1748460120485,0.75531,2647.3,2647.2,0.75529]
[1748460120686,1.98509,2647.4,2647.3,0.75529]
[1748460120884,1.98509,2647.4,2647.3,1.05036179]
[1748460121084,0.75529,2647.3,2647.2,1.97491]
[1748460121487,0.75529,2647.3,2647.2,2.27010191]
[1748460121687,0.75529,2647.3,2647.2,1.97491]
[1748460121894,0.75529,2647.3,2647.2,1.51476646]
[1748460122083,3.2078,2647.3,2646.9,0.6654]
[1748460122296,5.09629,2647.0,2646.6,3.2078]
[1748460122592,0.75546,2646.7,2646.6,3.2078]
[1748460122793,0.75546,2646.7,2646.6,4.4828]
[1748460122991,0.75546,2646.7,2646.6,4.77808558]
[1748460123192,0.75546,2646.7,2646.6,4.77808774]
[1748460123390,0.75546,2646.7,2646.6,4.4828]
[1748460123591,0.75546,2646.7,2646.6,4.77802909]
[1748460123894,0.75545,2646.8,2646.7,0.75544]
[1748460124095,0.75546,2646.7,2646.6,5.23828]
[1748460124296,0.75546,2646.7,2646.6,5.53348509]
[1748460124494,0.75546,2646.7,2646.6,5.23828]
[1748460124998,0.75549,2646.6,2646.5,0.00565942]
[1748460125292,2.65679,2646.6,2646.5,0.30095422]
[1748460125490,2.65679,2646.6,2646.5,0.300832]
[1748460125698,2.65679,2646.6,2646.5,0.30083895]
[1748460125893,2.65679,2646.6,2646.5,0.00565942]
[1748460126503,2.65679,2646.6,2646.5,0.3006924]
[1748460127197,2.65679,2646.6,2646.5,0.00565942]
[1748460127497,2.65679,2646.6,2646.5,0.30059708]
[1748460127695,7.65679,2646.6,2646.5,7.43e-06]
[1748460127903,8.68310016,2646.6,2646.5,7.43e-06]
[1748460128103,0.75572,2645.8,2645.7,1.3035]
[1748460128796,0.75572,2645.8,2645.7,2.05925]
[1748460129002,0.75571,2645.9,2645.7,1.3035]
[1748460129204,1.3325,2645.8,2645.7,2.05925]
[1748460129698,2.08822,2645.8,2645.7,2.05925]
[1748460130004,4.5403,2645.8,2645.6,0.6724]
[1748460130201,0.75575,2645.7,2645.6,0.6724]
[1748460130510,2.08825,2645.7,2645.6,0.6724]
[1748460131390,3.3211,2645.8,2645.7,0.75575]
[1748460131589,3.3211,2645.8,2645.7,2.02925]
[1748460132001,3.3211,2645.8,2645.6,0.6724]
[1748460132208,0.75589,2645.3,2645.1,0.75591]
[1748460132501,0.75589,2645.2,2645.1,1.9406]
[1748460132799,1.88967,2645.3,2644.4,3.2078]
[1748460133004,0.75604,2644.7,2644.6,1.2735]
[1748460133500,0.75603,2644.8,2644.6,2.02954]
[1748460133698,2.52391,2645.1,2644.7,1.2735]
[1748460133699,0.75598,2644.9,2644.7,1.2735]
[1748460133901,0.75596,2645.0,2644.7,1.2735]
[1748460134097,0.75598,2644.9,2644.7,2.02952]
[1748460134301,1.89002,2644.8,2644.4,7.0568]
[1748460134600,0.75626,2643.9,2643.8,0.6184]
[1748460135397,0.75632,2643.7,2643.6,1.2809]
[1748460136094,0.75629,2643.9,2643.6,1.2809]
[1748460136298,3.85127022,2644.1,2643.6,1.2809]
[1748460136505,0.75625,2644.0,2643.7,0.75631]
[1748460136709,4.60749022,2644.1,2643.8,2.03718]
[1748460136910,0.64347022,2644.1,2643.8,1.2809]
[1748460137106,0.099,2644.0,2643.3,3.2078]
[1748460137314,1.89113,2643.3,2641.5,3.2078]
[1748460137505,3.2078,2642.3,2641.8,3.2078]
[1748460137801,3.2078,2642.6,2642.5,0.75666]
[1748460138006,0.00567022,2642.7,2642.6,0.75664]
[1748460138197,0.00567022,2642.7,2642.6,4.82264]
[1748460138398,0.00567022,2642.7,2642.6,9.82264]
[1748460138598,3.2078,2643.3,2642.6,9.066]
[1748460138807,3.2078,2643.3,2643.2,0.75646]
[1748460139206,3.2078,2643.3,2643.2,5.75646]
[1748460139699,0.00567022,2643.5,2643.4,0.7564]
[1748460139906,0.00567022,2643.5,2643.4,1.05240115]
[1748460140203,0.00567022,2643.5,2643.4,6.05240115]
[1748460140699,0.00567022,2643.5,2643.4,5.7564]
[1748460140901,0.00567022,2643.5,2643.4,6.05220505]
[1748460141108,0.00567022,2643.5,2643.4,5.7564]
[1748460141304,0.00567022,2643.5,2643.4,0.29580616]
[1748460141506,0.00567022,2643.5,2643.4,0.29581818]
[1748460141707,0.00567022,2643.5,2643.4,1.05218818]
[1748460142299,3.2078,2644.0,2643.4,7.27488779]
[1748460142505,3.2078,2644.0,2643.9,0.75623]
[1748460142712,3.2078,2644.0,2643.9,1.05183351]
[1748460143017,3.2078,2644.0,2643.9,0.75623]
[1748460143208,3.2078,2644.0,2643.9,3.00513156]
[1748460143714,3.2078,2644.0,2643.8,4.068]
[1748460143715,3.964,2644.0,2643.8,0.75625]
[1748460144008,3.2078,2644.0,2643.9,1.6002355]
[1748460144209,3.2078,2644.0,2643.9,2.06083]
[1748460144407,3.2078,2644.0,2643.9,2.35646809]
[1748460144606,3.2078,2644.0,2643.9,2.06083]
[1748460144808,4.5621,2644.0,2643.9,0.29563722]
[1748460145007,5.3183,2644.0,2643.9,0.29563722]
[1748460145611,4.5621,2644.0,2643.9,0.29567671]
[1748460145812,5.3183,2644.0,2643.9,0.29567891]
[1748460146011,4.5621,2644.0,2643.9,0.29567802]
[1748460146312,5.31831,2644.0,2643.9,0.29567349]
[1748460146512,4.5621,2644.0,2643.9,1.05190131]
[1748460146912,0.00567022,2644.2,2644.1,0.75618]
[1748460147206,0.00567022,2644.2,2644.1,4.82418]
[1748460147413,0.00567022,2644.2,2644.1,5.11994221]
[1748460147603,0.00567022,2644.2,2644.1,4.82418]
[1748460147806,0.00567022,2644.2,2644.1,5.12003944]
[1748460148206,0.00567022,2644.2,2643.8,4.068]
[1748460148404,0.00567022,2644.2,2644.1,0.75618]
[1748460148604,0.00567022,2644.2,2644.1,1.05205662]
[1748460148807,0.00567022,2644.2,2644.1,6.05211607]
[1748460149011,0.1134,2644.3,2644.2,0.75615]
[1748460149219,0.1134,2644.3,2644.2,6.44095731]
[1748460149403,0.1134,2644.3,2644.2,11.44103181]
[1748460149600,0.1134,2644.3,2644.2,11.44101959]
[1748460149805,0.1134,2644.3,2644.2,29.60701959]
[1748460150406,0.1134,2644.3,2644.2,29.60719005]
[1748460150811,0.1134,2644.3,2644.2,29.60731357]
[1748460151009,3.2078,2644.9,2644.3,1.89027]
[1748460151314,3.2078,2644.9,2644.8,0.75598]
[1748460151610,3.96376,2644.9,2644.8,5.12030856]
[1748460151802,3.96376,2644.9,2644.8,5.12047765]
[1748460152006,3.2078,2644.9,2644.8,5.12047765]
[1748460152309,3.2078,2644.9,2644.8,5.120718]
[1748460153015,3.2078,2644.9,2644.8,5.12071432]
[1748460153518,0.11907022,2645.1,2645.0,0.75593]
[1748460153719,0.11907022,2645.1,2645.0,1.05266432]
[1748460153915,0.75593,2645.0,2644.9,2.09844]
[1748460154213,5.26183,2645.0,2644.9,19.7684431]
[1748460154517,4.5059,2645.0,2644.9,2.39564922]
[1748460154712,4.5059,2645.0,2644.9,24.58764836]
[1748460154918,4.5059,2645.0,2644.9,24.58264836]
[1748460155419,4.5059,2645.0,2644.9,24.28546]
[1748460155717,0.75596,2644.9,2644.8,0.07463908]
[1748460155917,3.37676,2644.9,2644.8,0.07463908]
[1748460156226,3.37676,2644.9,2644.8,0.3720682]
[1748460156516,3.37676,2644.9,2644.8,0.3722972]
[1748460157120,3.37676,2644.9,2644.8,0.3722889]
[1748460157317,3.37676,2644.9,2644.8,0.07463908]
[1748460157623,3.37676,2644.9,2644.8,0.37254839]
[1748460157825,3.37676,2644.9,2644.8,0.37254837]
[1748460158319,3.37676,2644.9,2644.8,0.07463908]
[1748460158525,3.37676,2644.9,2644.8,0.37266549]
[1748460158724,3.2078,2645.0,2644.9,0.75596]
[1748460158924,3.2078,2645.0,2644.9,1.05398641]
[1748460159120,3.2078,2645.0,2644.9,2.3149597]
[1748460159319,3.2078,2645.0,2644.9,2.01696]
[1748460159515,3.2078,2645.0,2644.9,2.31505086]
[1748460159727,3.2078,2645.0,2644.9,2.31505044]
[1748460159926,4.4455,2645.0,2644.9,2.31505044]
[1748460160625,4.4455,2645.0,2644.9,2.31513499]
[1748460160826,4.4455,2645.0,2644.9,2.01696]
[1748460161128,3.2078,2645.0,2644.9,2.31513104]
[1748460161627,3.2078,2645.0,2644.9,2.01696]
[1748460161819,3.2078,2645.0,2644.9,2.31519734]
[1748460162323,3.2078,2645.0,2644.9,2.31525495]
[1748460162626,3.2078,2645.0,2644.9,2.01696]
[1748460163129,3.2078,2645.0,2644.9,2.31525295]
[1748460163724,3.2078,2645.0,2644.9,2.31518749]
[1748460163921,3.2078,2645.0,2644.9,24.14196]
[1748460164117,4.4744,2645.0,2644.9,24.14196]
[1748460164315,4.4744,2645.0,2644.9,24.44019245]
[1748460164619,4.4744,2645.0,2644.9,24.44015513]
[1748460164816,4.4744,2645.0,2644.9,24.44015515]
[1748460165524,4.4744,2645.0,2644.9,24.44014203]
[1748460165826,4.4744,2645.0,2644.9,24.44014088]
[1748460166223,4.4744,2645.0,2644.9,24.4401409]
[1748460166424,4.4744,2645.0,2644.9,24.44015253]
[1748460167127,4.4744,2645.0,2644.9,24.44015902]
[1748460167327,4.4744,2645.0,2644.9,24.44051635]
[1748460167523,4.4744,2645.0,2644.9,24.44051694]
[1748460167722,4.4744,2645.0,2644.9,24.14196]
[1748460167924,4.4744,2645.0,2644.9,2.31551723]
[1748460168131,4.4744,2645.0,2644.9,24.46051723]
[1748460168627,4.4744,2645.0,2644.9,24.45577707]
[1748460168826,4.4744,2645.0,2644.9,24.45577705]
[1748460169134,4.4744,2645.0,2644.9,24.15196]
[1748460169425,4.4744,2645.0,2644.9,2.31578041]
[1748460169631,4.4744,2645.0,2644.9,24.44778004]
[1748460169935,4.4744,2645.0,2644.9,24.4478559]
[1748460170324,4.4744,2645.0,2644.9,24.44785064]
[1748460170626,4.4744,2645.0,2644.9,24.4478499]
[1748460170833,3.2078,2645.0,2644.9,24.44784679]
[1748460171028,0.00567022,2645.1,2645.0,0.75593]
[1748460171327,0.00567022,2645.1,2645.0,2.956609]
[1748460171629,0.00567022,2645.1,2645.0,2.95670564]
[1748460171825,0.00567022,2645.1,2645.0,2.65773]
[1748460172030,0.00567022,2645.1,2645.0,3.60630761]
[1748460172227,0.00567022,2645.1,2645.0,3.30733]
[1748460172637,0.00567022,2645.1,2645.0,3.6064376]
[1748460173332,3.2078,2645.9,2645.8,0.7557]
[1748460173525,3.2078,2645.9,2645.8,1.05481407]
[1748460173833,3.96347,2645.9,2645.8,1.05481325]
[1748460174031,3.96347,2645.9,2645.8,0.29911325]
[1748460174238,0.75578,2645.7,2645.6,0.75575]
[1748460174434,0.75578,2645.7,2645.6,22.86475]
[1748460174625,0.75578,2645.7,2645.6,1.0548827]
[1748460174839,0.75578,2645.7,2645.6,23.1608827]
[1748460175146,0.75578,2645.7,2645.6,23.16088551]
[1748460175444,0.75578,2645.7,2645.6,23.16104904]
[1748460175846,0.75578,2645.7,2645.6,23.16104846]
[1748460176035,0.75578,2645.7,2645.6,23.15204846]
[1748460176242,0.75578,2645.7,2645.6,23.15204904]
[1748460176741,0.75578,2645.7,2645.6,0.29929904]
[1748460176943,0.75581,2645.4,2645.3,4.122]
[1748460177143,3.96361,2645.4,2645.3,23.15130134]
[1748460177446,3.96361,2645.4,2645.3,23.15139353]
[1748460177649,3.96361,2645.4,2645.3,22.85184]
[1748460177946,3.2078,2645.4,2645.3,23.1513937]
[1748460178646,3.2078,2645.4,2645.3,23.15139394]
[1748460178647,4.5534,2645.4,2645.3,23.15139394]
[1748460178941,4.5534,2645.4,2645.3,23.15139085]
[1748460179137,1.3456,2645.4,2645.3,22.85184]
[1748460179344,1.3456,2645.4,2645.3,23.15137119]
[1748460179943,1.3456,2645.4,2645.3,22.85184]
[1748460180141,5.30921,2645.4,2645.3,0.75584]
[1748460180344,5.30921,2645.4,2645.3,1.05540069]
[1748460180547,0.75584,2645.3,2645.2,0.75585]
[1748460180748,0.75587,2645.2,2645.1,22.84289]
[1748460181247,2.05567,2645.2,2645.1,23.14246805]
[1748460181548,2.05567,2645.2,2645.1,4.42157805]
[1748460181848,2.05567,2645.2,2645.1,23.13547805]
[1748460182044,2.05567,2645.2,2645.1,23.13548232]
[1748460182246,2.05567,2645.2,2645.1,23.13549365]
[1748460182551,2.05567,2645.2,2645.1,22.8359]
[1748460182744,2.05567,2645.2,2645.1,23.13549289]
[1748460182944,2.05567,2645.2,2645.1,22.8359]
[1748460183140,2.05567,2645.2,2645.1,23.13549406]
[1748460183549,2.05567,2645.2,2645.1,0.7559]
[1748460183742,7.05567,2645.2,2645.1,0.29961084]
[1748460183937,7.05567,2645.2,2644.6,22.06767022]
[1748460183938,1.88981,2645.1,2644.6,22.06767022]
[1748460184155,3.2078,2644.9,2644.8,0.75596]
[1748460184341,3.2078,2644.9,2644.8,1.05558558]
[1748460185046,3.2078,2645.3,2645.2,0.75587]
[1748460185352,3.2078,2645.3,2645.2,5.17085165]
[1748460185646,1.2941,2645.5,2645.4,0.75581]
[1748460185948,1.2941,2645.5,2645.4,1.04848729]
[1748460186145,1.2941,2645.5,2645.4,1.04848168]
[1748460186449,1.2941,2645.5,2645.4,1.04854893]
[1748460187146,1.2941,2645.5,2645.4,18.70481]
[1748460187338,1.2941,2645.5,2645.4,18.99761098]
[1748460187648,1.2941,2645.5,2645.4,18.99761041]
[1748460187843,1.2941,2645.5,2645.4,18.70481]
[1748460188047,1.2941,2645.5,2645.4,18.99761214]
[1748460188644,1.2941,2645.5,2645.4,18.70481]
[1748460188844,1.2941,2645.5,2645.4,18.99769235]
[1748460189152,1.2941,2645.5,2645.4,18.99769299]
[1748460189454,1.2941,2645.5,2645.4,18.99769737]
[1748460189750,1.2941,2645.5,2645.4,18.99769693]
[1748460190348,1.2941,2645.5,2645.4,18.99770499]
[1748460190549,1.2941,2645.5,2645.4,18.99770483]
[1748460190848,1.2941,2645.5,2645.4,18.9977044]
[1748460191251,1.2941,2645.5,2645.4,18.99770862]
[1748460191450,1.2941,2645.5,2645.4,18.99770743]
[1748460191651,1.2941,2645.5,2645.4,18.99770811]
[1748460192339,1.2941,2645.5,2645.4,18.70481]
[1748460192545,1.2941,2645.5,2645.4,18.9977076]
[1748460192851,0.7315,2645.7,2645.6,0.75576]
[1748460193053,0.1131,2645.7,2645.6,4.87776]
[1748460193349,0.1131,2645.7,2645.6,5.17063294]
[1748460193651,0.86883,2645.7,2645.6,23.06963294]
[1748460193840,0.1131,2645.7,2645.6,23.06963294]
[1748460194243,1.3851,2645.7,2645.6,23.06959809]